bitfinex/quotes_BTCUSD_20250326
["timestamp","ask_amount","ask_price","bid_price","bid_amount"]
[1742996175042,0.01784401,87819.0,87814.0,0.25368185]
[1742996175043,0.01784401,87819.0,87818.0,0.25367085]
[1742996175247,0.15372401,87819.0,87818.0,0.43542989]
[1742996175606,0.15372401,87819.0,87818.0,0.18175904]
[1742996176079,0.1677115,87819.0,87818.0,0.18175904]
[1742996176324,0.1927115,87819.0,87818.0,0.18175904]
[1742996176516,0.3315115,87819.0,87818.0,0.18175904]
[1742996176719,0.3265115,87819.0,87818.0,0.18175904]
[1742996176910,0.3295515,87819.0,87818.0,0.19993494]
[1742996177078,0.3045515,87819.0,87818.0,0.21447579]
[1742996177250,0.3295515,87819.0,87818.0,0.21447579]
[1742996177473,0.28670749,87819.0,87818.0,0.21447579]
[1742996177666,0.15078749,87819.0,87818.0,0.21447579]
[1742996177871,0.28682749,87819.0,87818.0,0.21447579]
[1742996178277,0.15078749,87819.0,87818.0,0.19629989]
[1742996178477,0.28678749,87819.0,87818.0,0.78797989]
[1742996178681,0.15078749,87819.0,87818.0,0.78797989]
[1742996178877,0.30910842,87819.0,87818.0,0.78797989]
[1742996179083,0.29512093,87819.0,87818.0,0.78797989]
[1742996179322,0.30918468,87819.0,87818.0,0.90223753]
[1742996179702,0.17314468,87819.0,87818.0,1.14136753]
[1742996179900,0.24656093,87819.0,87818.0,1.14136753]
[1742996180074,0.05312265,87819.0,87818.0,1.14136753]
[1742996180577,0.18924265,87819.0,87818.0,1.14136753]
[1742996181262,0.18624265,87819.0,87818.0,1.14136753]
[1742996181407,0.18724265,87819.0,87818.0,1.14136753]
[1742996181997,0.18724265,87819.0,87818.0,1.02710989]
[1742996182638,0.16940093,87819.0,87818.0,1.02710989]
[1742996183039,0.03328093,87819.0,87818.0,1.02710989]
[1742996183236,0.16924093,87819.0,87818.0,1.02710989]
[1742996183824,0.16824093,87819.0,87818.0,1.02710989]
[1742996184031,0.16824093,87819.0,87818.0,1.14136753]
[1742996185763,9.3e-07,87819.0,87818.0,1.14136753]
[1742996185919,0.002,87829.0,87828.0,0.239102]
[1742996186127,0.13829154,87829.0,87828.0,0.25364285]
[1742996186333,0.15235337,87829.0,87828.0,0.25364285]
[1742996186558,0.15235337,87829.0,87828.0,0.34960174]
[1742996186957,0.01647337,87829.0,87828.0,0.34960174]
[1742996187425,0.01847337,87829.0,87828.0,0.34960174]
[1742996187612,0.04151099,87829.0,87828.0,0.34960174]
[1742996189165,0.05151099,87829.0,87828.0,0.34960174]
[1742996189985,0.04951099,87829.0,87828.0,0.53136078]
[1742996190610,0.03544916,87829.0,87828.0,0.53136078]
[1742996190850,0.03544916,87829.0,87828.0,0.43540189]
[1742996191299,0.04963842,87829.0,87828.0,0.43540189]
[1742996192009,0.03544916,87829.0,87828.0,0.43540189]
[1742996194955,0.0566476,87829.0,87828.0,0.43540189]
[1742996196000,0.03544916,87829.0,87828.0,0.43540189]
[1742996196207,0.05328756,87829.0,87828.0,0.18175904]
[1742996196653,0.06747487,87829.0,87828.0,0.19629989]
[1742996197024,0.06747487,87829.0,87828.0,0.22530023]
[1742996197200,0.14747487,87829.0,87828.0,0.18175904]
[1742996197399,0.14747487,87829.0,87828.0,0.19629989]
[1742996198513,0.16870654,87829.0,87828.0,0.12499474]
[1742996198645,0.16870654,87829.0,87828.0,0.18531641]
[1742996199119,0.16870654,87829.0,87828.0,0.11045389]
[1742996199655,0.16887584,87829.0,87828.0,0.11045389]
[1742996200433,0.17387584,87829.0,87828.0,0.11045389]
[1742996200813,0.025,87828.0,87820.0,0.01454085]
[1742996201867,0.1563,87823.0,87821.0,0.11045389]
[1742996202074,0.0771,87822.0,87821.0,0.11045389]
[1742996202336,0.0771,87822.0,87821.0,0.07455384]
[1742996202546,0.09118882,87822.0,87821.0,0.07455384]
[1742996204558,0.17308882,87822.0,87821.0,0.07455384]
[1742996204711,0.17593556,87822.0,87821.0,0.07455384]
[1742996204914,0.17308882,87822.0,87821.0,0.07455384]
[1742996205115,0.17408882,87822.0,87821.0,0.07455384]
[1742996205322,1.9649636,87822.0,87821.0,0.07455384]
[1742996205534,1.96211682,87822.0,87821.0,0.07455384]
[1742996206309,1.92591482,87822.0,87821.0,0.07455384]
[1742996206981,0.65743482,87822.0,87821.0,0.07455384]
[1742996207378,0.57840482,87822.0,87821.0,0.07455384]
[1742996207603,0.57840482,87822.0,87818.0,0.59168]
[1742996207837,0.3,87821.0,87818.0,0.59168]
[1742996208048,0.025,87819.0,87818.0,0.59168]
[1742996208567,0.03905353,87819.0,87818.0,0.59168]
[1742996208720,0.05689639,87819.0,87818.0,0.59168]
[1742996209547,0.06189639,87819.0,87818.0,0.59168]
[1742996210810,0.20713639,87819.0,87818.0,0.59168]
[1742996211141,0.1563,87823.0,87818.0,0.878591]
[1742996211416,7e-05,87879.0,87818.0,0.878591]
[1742996211417,7e-05,87879.0,87873.0,0.01138]
[1742996211661,7e-05,87879.0,87848.0,0.0734]
[1742996211662,7e-05,87879.0,87867.0,0.59156]
[1742996211663,0.287,87874.0,87867.0,0.59156]
[1742996211886,0.13664,87874.0,87867.0,0.03816565]
[1742996212098,0.08354498,87873.0,87864.0,0.4078]
[1742996212299,0.22014498,87873.0,87867.0,0.227616]
[1742996212551,0.22014498,87873.0,87864.0,0.4078]
[1742996212758,0.3,87872.0,87859.0,0.59156]
[1742996212930,0.00284536,87871.0,87859.0,0.59156]
[1742996213132,0.00284536,87871.0,87862.0,0.227627]
[1742996213307,0.3,87872.0,87866.0,0.227617]
[1742996213510,0.3,87872.0,87859.0,0.59156]
[1742996213749,0.3,87872.0,87866.0,0.227618]
[1742996213973,0.3,87872.0,87869.0,0.227608]
[1742996214149,0.2173,87873.0,87872.0,0.238983]
[1742996214150,0.0807,87873.0,87872.0,0.238983]
[1742996214347,0.0807,87873.0,87872.0,0.3106787]
[1742996214548,0.21714,87873.0,87872.0,0.3106787]
[1742996214755,0.21714,87873.0,87872.0,0.238983]
[1742996214954,0.21714,87873.0,87872.0,0.227603]
[1742996215161,0.2171,87873.0,87872.0,0.226603]
[1742996215368,0.0807,87873.0,87859.0,0.602941]
[1742996215572,0.13636,87872.0,87870.0,0.227608]
[1742996215815,0.13636,87872.0,87866.0,0.227619]
[1742996215999,0.13636,87872.0,87869.0,0.22761]
[1742996216169,0.13628,87871.0,87866.0,0.227617]
[1742996216369,0.13628,87871.0,87860.0,0.011381]
[1742996216370,0.13628,87871.0,87859.0,0.59156]
[1742996216570,0.3,87869.0,87859.0,0.59156]
[1742996216771,0.979336,87868.0,87859.0,0.59156]
[1742996216997,0.3,87867.0,87859.0,0.59156]
[1742996217210,0.538081,87867.0,87859.0,0.59156]
[1742996217370,0.3,87867.0,87859.0,0.59156]
[1742996217716,0.01783309,87866.0,87859.0,0.59156]
[1742996218773,0.02783309,87866.0,87859.0,0.59156]
[1742996218951,0.0093319,87865.0,87859.0,0.59156]
[1742996219306,0.520123,87864.0,87859.0,0.59156]
[1742996219947,0.0093319,87863.0,87859.0,0.59156]
[1742996220117,0.02983309,87866.0,87859.0,0.59156]
[1742996220333,0.0093319,87862.0,87859.0,0.650716]
[1742996220540,0.02783309,87866.0,87859.0,0.650716]
[1742996220736,0.0093319,87861.0,87859.0,0.650716]
[1742996221077,0.1362,87865.0,87859.0,0.650716]
[1742996221598,0.0093319,87864.0,87863.0,0.011381]
[1742996221794,0.0093319,87864.0,87863.0,0.227627]
[1742996222030,0.13892,87865.0,87859.0,0.59156]
[1742996222232,0.00284529,87864.0,87859.0,0.59156]
[1742996222413,0.13904,87863.0,87859.0,0.59156]
[1742996222992,0.0124605,87862.0,87859.0,0.59156]
[1742996223375,0.0124605,87862.0,87859.0,0.59007758]
[1742996223763,0.00284546,87862.0,87859.0,0.59007758]
[1742996224075,0.00284546,87862.0,87835.0,0.602744]
[1742996224076,0.3,87860.0,87835.0,0.602744]
[1742996224277,0.15644501,87849.0,87847.0,0.227666]
[1742996224475,0.15644501,87849.0,87847.0,0.239049]
[1742996224679,0.13904,87848.0,87847.0,0.227666]
[1742996224886,0.139,87848.0,87847.0,0.239051]
[1742996225083,0.15644501,87849.0,87848.0,0.02592385]
[1742996225283,0.0101693,87866.0,87863.0,0.239005]
[1742996225487,0.13896,87865.0,87864.0,0.239005]
[1742996225713,0.13896,87865.0,87864.0,0.2777013]
[1742996225714,0.14854067,87865.0,87864.0,0.2777013]
[1742996226037,0.14854067,87865.0,87864.0,0.0500773]
[1742996226237,0.16637259,87865.0,87864.0,0.0500773]
[1742996226670,0.16637259,87865.0,87856.0,0.01454085]
[1742996226960,0.15679192,87865.0,87856.0,0.01454085]
[1742996227193,0.15679192,87865.0,87859.0,0.227636]
[1742996227306,0.01783192,87865.0,87857.0,0.227642]
[1742996227512,0.1388,87864.0,87857.0,0.227642]
[1742996227960,0.01783192,87865.0,87858.0,0.22764]
[1742996228133,0.13872,87863.0,87858.0,0.22764]
[1742996228356,0.13872,87863.0,87859.0,0.11425764]
[1742996228558,0.13872,87863.0,87860.0,0.227634]
[1742996228756,0.13872,87863.0,87861.0,0.239012]
[1742996228964,0.13872,87863.0,87861.0,0.227631]
[1742996229142,0.13872,87863.0,87859.0,0.34189264]
[1742996229337,0.13872,87863.0,87860.0,0.227634]
[1742996229538,0.13872,87863.0,87853.0,0.227652]
[1742996229746,0.00960977,87862.0,87857.0,0.227642]
[1742996230147,0.00960977,87862.0,87855.0,0.011382]
[1742996230357,0.13848,87861.0,87860.0,0.239015]
[1742996230558,0.04008766,87865.0,87864.0,0.239005]
[1742996231027,0.04008766,87865.0,87864.0,0.66134585]
[1742996231028,0.01783192,87865.0,87864.0,0.66134585]
[1742996231437,7e-07,87866.0,87865.0,0.25354285]
[1742996231645,7e-07,87866.0,87865.0,0.36780049]
[1742996232055,7e-07,87866.0,87865.0,0.77560049]
[1742996233376,7e-07,87866.0,87865.0,1.22570049]
[1742996233802,7e-05,87879.0,87878.0,0.238967]
[1742996234013,7e-05,87879.0,87878.0,0.25350785]
[1742996234223,0.00973969,87879.0,87878.0,0.25350785]
[1742996234437,7e-05,87879.0,87878.0,0.25350785]
[1742996235539,7e-05,87879.0,87878.0,0.25450785]
[1742996235679,7e-05,87879.0,87878.0,0.36876549]
[1742996236529,7e-05,87879.0,87878.0,0.36976549]
[1742996236733,0.13823,87879.0,87878.0,0.36976549]
[1742996237132,0.14823,87879.0,87878.0,0.36976549]
[1742996237691,0.14823,87879.0,87878.0,0.25550785]
[1742996239173,0.01007,87879.0,87878.0,0.25550785]
[1742996239563,0.14791,87879.0,87878.0,0.25550785]
[1742996239924,0.01007,87879.0,87878.0,0.66330715]
[1742996240064,0.01007,87879.0,87878.0,0.77756479]
[1742996243008,0.01007,87879.0,87878.0,0.6487663]
[1742996243644,0.14771,87879.0,87878.0,0.6487663]
[1742996244065,0.15752998,87879.0,87878.0,1.2398463]
[1742996244272,0.15752998,87879.0,87878.0,1.25438715]
[1742996244472,0.14771,87879.0,87878.0,1.25438715]
[1742996245308,0.01007,87879.0,87878.0,1.36864479]
[1742996245508,0.14751,87879.0,87878.0,1.36864479]
[1742996245685,0.01007,87879.0,87878.0,1.36864479]
[1742996245886,0.14763,87879.0,87878.0,1.36864479]
[1742996246504,0.01007,87879.0,87878.0,1.36864479]
[1742996247185,4e-07,87887.0,87878.0,1.36864479]
[1742996247381,4e-07,87887.0,87886.0,0.25348585]
[1742996247606,4e-07,87887.0,87886.0,0.66128515]
[1742996249924,0.0100004,87887.0,87886.0,0.66128515]
[1742996250122,0.0100004,87887.0,87886.0,0.66428515]
[1742996250356,0.0100004,87887.0,87886.0,0.66728515]
[1742996254650,0.0100004,87887.0,87886.0,0.66580324]
[1742996255414,0.0100004,87887.0,87886.0,0.66561877]
[1742996260348,4e-07,87887.0,87886.0,0.66561877]
[1742996262062,4e-07,87889.0,87888.0,0.28348085]
[1742996262381,0.0001693,87917.0,87886.0,0.65141692]
[1742996262382,0.13608,87909.0,87906.0,0.23889]
[1742996262581,0.00029279,87907.0,87906.0,0.75565025]
[1742996264294,0.00029279,87907.0,87906.0,0.75965025]
[1742996264697,0.00029279,87907.0,87906.0,0.75765025]
[1742996264906,0.00029279,87907.0,87906.0,0.75965025]
[1742996265370,7.9e-07,87907.0,87906.0,0.75965025]
[1742996265654,7.9e-07,87907.0,87906.0,0.75765025]
[1742996266085,7.9e-07,87907.0,87906.0,0.75965025]
[1742996266864,4.3e-07,87910.0,87909.0,0.27842285]
[1742996267045,4.3e-07,87910.0,87909.0,0.39268049]
[1742996267252,4.3e-07,87910.0,87909.0,1.39135939]
[1742996267455,3e-08,87920.0,87919.0,0.02443343]
[1742996267662,3e-08,87920.0,87919.0,0.43223233]
[1742996267870,3e-08,87920.0,87919.0,0.54648997]
[1742996268712,3e-08,87920.0,87919.0,0.57148997]
[1742996268916,3e-08,87920.0,87919.0,0.58248997]
[1742996269142,0.0001693,87951.0,87942.0,0.011371]
[1742996269343,0.0001693,87951.0,87948.0,0.25331785]
[1742996270136,0.00241139,87949.0,87948.0,0.25331785]
[1742996270913,0.13841139,87949.0,87948.0,0.25331785]
[1742996271089,0.15722464,87949.0,87948.0,0.25331785]
[1742996271303,0.15622464,87949.0,87948.0,0.36757549]
[1742996271929,0.02022464,87949.0,87948.0,0.36757549]
[1742996272508,0.00241139,87949.0,87948.0,0.36757549]
[1742996272875,3.9e-07,87949.0,87948.0,0.77537439]
[1742996273075,6.9e-07,87951.0,87950.0,0.268771]
[1742996273296,0.0473,87982.0,87950.0,0.268771]
[1742996273297,6.5e-07,87975.0,87974.0,0.02590685]
[1742996273526,0.0473,87982.0,87974.0,0.02590685]
[1742996273527,0.0473,87982.0,87978.0,0.238695]
[1742996273696,0.0473,87982.0,87978.0,0.30242913]
[1742996274066,0.1001692,88008.0,87978.0,1.30094803]
[1742996274067,2.4e-07,87979.0,87978.0,1.30094803]
[1742996274260,2.4e-07,87979.0,87978.0,1.33094803]
[1742996274461,4.4e-07,87995.0,87994.0,0.238652]
[1742996274601,4.4e-07,87995.0,87994.0,0.66099175]
[1742996274799,4.4e-07,87995.0,87994.0,0.75459283]
[1742996275411,4.4e-07,87995.0,87994.0,0.66099175]
[1742996279970,4.4e-07,87995.0,87994.0,0.66399175]
[1742996280169,4.4e-07,87995.0,87994.0,0.66699175]
[1742996280912,4.4e-07,87995.0,87994.0,0.66399175]
[1742996281799,4.4e-07,87995.0,87994.0,0.66699175]
[1742996282107,4.4e-07,87995.0,87994.0,0.78124939]
[1742996282474,4.4e-07,87995.0,87994.0,0.78524939]
[1742996282893,4.4e-07,87995.0,87994.0,0.67099175]
[1742996285761,0.02223739,87995.0,87994.0,0.67099175]
[1742996286204,0.16039739,87995.0,87994.0,0.67099175]
[1742996286897,4.4e-07,87995.0,87994.0,0.67099175]
[1742996287026,7.6e-07,87998.0,87996.0,0.238647]
[1742996287229,7.6e-07,87998.0,87997.0,0.77524139]
[1742996288299,7.6e-07,87998.0,87997.0,0.80524139]
[1742996288508,4e-05,88000.0,87999.0,0.268638]
[1742996288810,4e-05,88000.0,87999.0,0.28317885]
[1742996289010,0.002,88009.0,87999.0,0.28317885]
[1742996289011,2e-07,88009.0,88008.0,0.268614]
[1742996289237,2e-07,88009.0,88008.0,0.28315485]
[1742996289431,4.2e-07,88009.0,88008.0,0.28315485]
[1742996290100,4.2e-07,88009.0,88008.0,0.58315485]
[1742996290753,4.2e-07,88009.0,88008.0,0.69741249]
[1742996290975,0.01779577,88045.0,88036.0,0.23705711]
[1742996291144,0.01779577,88045.0,88036.0,1.2496761]
[1742996291298,0.00057985,88037.0,88036.0,1.2496761]
[1742996292744,8.5e-07,88039.0,88038.0,0.25307285]
[1742996292902,8.5e-07,88060.0,88056.0,0.23700462]
[1742996293104,0.00012402,88060.0,88059.0,0.25301685]
[1742996293999,0.00012402,88060.0,88059.0,0.66081499]
[1742996294192,0.00012402,88060.0,88059.0,0.77507263]
[1742996294614,0.00012402,88060.0,88059.0,0.77807263]
[1742996295835,0.00012402,88060.0,88059.0,0.66381499]
[1742996296047,0.00012402,88060.0,88059.0,0.003]
[1742996296270,0.19565909,88060.0,88059.0,0.007]
[1742996296414,0.18470402,88060.0,88059.0,0.007]
[1742996296610,0.19565493,88060.0,88059.0,0.02154085]
[1742996296815,0.05737493,88060.0,88059.0,0.03289685]
[1742996297040,0.18462402,88060.0,88059.0,0.03289685]
[1742996297242,0.19557493,88060.0,88059.0,0.007]
[1742996297446,0.05754423,88060.0,88059.0,0.015356]
[1742996297792,0.01124423,88060.0,88059.0,0.03089685]
[1742996298173,0.00029332,88060.0,88059.0,0.02689685]
[1742996298585,0.00029332,88060.0,88059.0,0.02789685]
[1742996299194,0.00029332,88060.0,88059.0,0.02689685]
[1742996299401,0.00029332,88060.0,88059.0,0.12397984]
[1742996299616,0.00029332,88060.0,88059.0,0.02989685]
[1742996299794,0.00029332,88060.0,88059.0,0.03289685]
[1742996300402,0.13837332,88060.0,88059.0,0.03289685]
[1742996300761,0.00029332,88060.0,88059.0,0.03289685]
[1742996300967,0.13833332,88060.0,88059.0,0.13157984]
[1742996301164,0.13833332,88060.0,88059.0,0.03289685]
[1742996301387,0.13833332,88060.0,88059.0,0.44069499]
[1742996302826,0.00029332,88060.0,88059.0,0.44069499]
[1742996303027,0.13813332,88060.0,88059.0,0.44069499]
[1742996303205,0.13809332,88060.0,88059.0,0.44069499]
[1742996303407,0.00029332,88060.0,88059.0,0.55495263]
[1742996304079,0.00029332,88060.0,88059.0,0.44069499]
[1742996304290,0.13809332,88060.0,88059.0,1.03061499]
[1742996304720,0.13809332,88060.0,88059.0,1.01925899]
[1742996304931,0.13805332,88060.0,88059.0,0.59692]
[1742996305135,0.26215332,88060.0,88059.0,0.59692]
[1742996305322,0.57309184,88060.0,88059.0,0.59692]
[1742996305470,0.60160033,88060.0,88059.0,0.59692]
[1742996305932,0.60164033,88060.0,88059.0,0.59292]
[1742996306109,0.60164033,88060.0,88059.0,0.58992]
[1742996306247,0.57313184,88060.0,88059.0,0.58992]
[1742996307077,0.59092477,88060.0,88059.0,0.58992]
[1742996308114,0.59092477,88060.0,88041.0,0.238523]
[1742996308115,0.0798,88056.0,88033.0,0.011359]
[1742996308318,0.0471,88057.0,88032.0,0.58992]
[1742996308319,0.3,88044.0,88032.0,0.58992]
[1742996308542,0.15644501,88045.0,88032.0,0.58992]
[1742996308543,0.0782,88041.0,88032.0,0.58992]
[1742996308793,0.00283993,88040.0,88032.0,0.58992]
[1742996308936,0.00283993,88040.0,88009.0,0.40779814]
[1742996308937,0.3,88036.0,88009.0,0.99775814]
[1742996309148,0.31013793,88040.0,87981.0,0.011366]
[1742996309149,0.1232,88018.0,87981.0,0.011366]
[1742996309364,0.3,87997.0,87992.0,0.011364]
[1742996309521,0.15644501,87998.0,87997.0,0.238644]
[1742996309740,0.1232,88018.0,88017.0,0.238589]
[1742996309966,0.3,88017.0,88013.0,0.227237]
[1742996310122,0.3,88017.0,88011.0,0.011362]
[1742996310524,0.3,88017.0,88009.0,0.58996]
[1742996310525,0.01070225,88016.0,88014.0,0.227235]
[1742996310730,0.01070225,88016.0,88012.0,0.011362]
[1742996310932,0.01070225,88016.0,88014.0,0.227235]
[1742996311130,0.01070225,88016.0,88013.0,0.238598]
[1742996311260,0.01070225,88016.0,88015.0,0.011361]
[1742996311632,0.43904,88016.0,88015.0,0.011361]
[1742996311807,0.43904,88016.0,88014.0,0.227234]
[1742996311808,0.3,88015.0,88014.0,0.227234]
[1742996312251,0.31070857,88015.0,88014.0,0.238595]
[1742996313392,0.31070857,88015.0,88012.0,0.011362]
[1742996313393,0.01070857,88015.0,88012.0,0.011362]
[1742996313602,0.01070857,88015.0,88014.0,0.002]
[1742996314008,0.01354913,88015.0,88014.0,0.004]
[1742996314453,0.01070857,88015.0,88014.0,0.004]
[1742996314656,0.01070857,88015.0,88014.0,0.002]
[1742996314848,1.07660975,88015.0,88014.0,0.002]
[1742996315076,0.48222357,88015.0,88011.0,0.00041065]
[1742996315271,0.43876,88014.0,88012.0,0.002]
[1742996315424,0.01070869,88013.0,88012.0,0.002]
[1742996315627,0.01070869,88013.0,88012.0,0.004]
[1742996316032,0.01070869,88013.0,88012.0,0.002]
[1742996316571,0.01070869,88013.0,88011.0,0.00041065]
[1742996316930,0.02851073,88013.0,88011.0,0.00041065]
[1742996317772,0.00284069,88012.0,88011.0,0.00041065]
[1742996317975,0.47569047,88012.0,88011.0,0.00041065]
[1742996318171,0.31049741,88012.0,88011.0,0.00041065]
[1742996318788,0.59610541,88012.0,88011.0,0.00041065]
[1742996319606,0.31049741,88012.0,88011.0,0.00041065]
[1742996319769,0.31149741,88012.0,88011.0,0.00041065]
[1742996319973,0.31149741,88012.0,88011.0,0.00141065]
[1742996320377,0.31149741,88012.0,88011.0,0.00041065]
[1742996320772,0.31249741,88012.0,88011.0,0.00041065]
[1742996322460,0.37404268,88012.0,88011.0,0.00041065]
[1742996322672,0.31249741,88012.0,88011.0,0.00041065]
[1742996323769,0.45045741,88012.0,88011.0,0.23901665]
[1742996324161,0.45045741,88012.0,88011.0,0.00041065]
[1742996324802,0.45045741,88012.0,88011.0,0.01177265]
[1742996324923,0.31249741,88012.0,88011.0,0.23901665]
[1742996325121,0.01249741,88012.0,88011.0,0.35327429]
[1742996325440,0.13988,88012.0,88011.0,0.23901665]
[1742996326322,0.13888,88012.0,88011.0,0.23901665]
[1742996326561,0.13788,88012.0,88011.0,0.24001665]
[1742996327008,0.15568075,88012.0,88011.0,0.24101665]
[1742996327241,0.15568075,88012.0,88011.0,0.00241065]
[1742996327447,0.16622294,88012.0,88011.0,0.00241065]
[1742996327984,0.46622294,88012.0,88011.0,0.00241065]
[1742996328188,0.46622294,88012.0,88011.0,0.00141065]
[1742996328403,0.46622294,88012.0,88011.0,0.00041065]
[1742996331619,0.46582294,88012.0,88011.0,0.23901665]
[1742996331812,0.46582294,88012.0,88011.0,0.22765465]
[1742996331953,0.46582294,88012.0,88011.0,0.00041065]
[1742996332618,0.31054219,88012.0,88011.0,0.00041065]
[1742996332812,0.44790219,88012.0,88011.0,0.00041065]
[1742996333402,0.31054219,88012.0,88011.0,0.00041065]
[1742996333610,0.44778219,88012.0,88011.0,0.00041065]
[1742996336251,0.31054219,88012.0,88011.0,0.00041065]
[1742996336603,0.44750219,88012.0,88011.0,0.00041065]
[1742996336980,0.44754219,88012.0,88011.0,0.00041065]
[1742996339490,1.9698989,88012.0,88011.0,0.00041065]
[1742996339695,1.9698989,88012.0,87998.0,0.59024]
[1742996339697,2.3342999,88012.0,87998.0,0.59024]
[1742996339895,0.58714501,87999.0,87998.0,0.00012322]
[1742996340098,1.23553296,87999.0,87998.0,0.00012322]
[1742996340520,1.25333985,87999.0,87998.0,0.00012322]
[1742996340728,0.92619645,87999.0,87998.0,0.00012322]
[1742996340943,0.73933945,87999.0,87998.0,0.00012322]
[1742996341499,0.74133945,87999.0,87998.0,0.00012322]
[1742996341712,0.3,87994.0,87941.0,0.229422]
[1742996341924,0.1225,87961.0,87941.0,0.002]
[1742996342302,0.1225,87961.0,87915.0,0.32991323]
[1742996342303,0.3,87941.0,87915.0,0.10242323]
[1742996342506,0.00284369,87940.0,87930.0,0.011372]
[1742996342687,0.00284369,87940.0,87928.0,0.011372]
[1742996342860,0.00284369,87940.0,87927.0,0.227461]
[1742996342861,0.3,87938.0,87927.0,0.227461]
[1742996343062,0.3,87938.0,87923.0,0.011373]
[1742996343271,0.3,87936.0,87930.0,0.011372]
[1742996343466,0.00822997,87935.0,87919.0,0.01212439]
[1742996343664,0.15644501,87924.0,87919.0,0.00075039]
[1742996343866,0.30822982,87923.0,87919.0,0.00075039]
[1742996344043,0.30822982,87923.0,87920.0,0.59032]
[1742996344415,0.3,87921.0,87919.0,0.00075039]
[1742996344562,0.3,87921.0,87920.0,0.59032]
[1742996344790,0.984916,87921.0,87920.0,0.59032]
[1742996344926,0.984916,87921.0,87911.0,0.002]
[1742996344927,0.99310356,87921.0,87915.0,0.69165362]
[1742996345128,0.25,87918.0,87915.0,0.10117362]
[1742996345327,5.30284418,87917.0,87915.0,0.10117362]
[1742996345585,0.3,87915.0,87911.0,0.002]
[1742996345790,0.137,87920.0,87911.0,0.002]
[1742996345993,0.3,87913.0,87912.0,0.05931572]
[1742996346189,0.3,87913.0,87911.0,0.240876]
[1742996346425,0.30818702,87913.0,87911.0,0.002]
[1742996346844,0.31687622,87913.0,87911.0,0.002]
[1742996347017,0.01581,87911.0,87906.0,0.590818]
[1742996347432,0.01103102,87910.0,87906.0,0.590818]
[1742996347843,0.4396,87909.0,87906.0,0.590818]
[1742996348053,0.3,87923.0,87906.0,0.590818]
[1742996348054,0.00850985,87935.0,87909.0,0.227507]
[1742996348215,2.2e-07,87921.0,87920.0,0.25339285]
[1742996348419,2.2e-07,87921.0,87920.0,0.27873214]
[1742996348607,0.02320995,87944.0,87943.0,0.238791]
[1742996348807,0.15644501,87959.0,87958.0,0.23875]
[1742996349224,0.29820501,87959.0,87953.0,0.011369]
[1742996349388,0.29820501,87959.0,87943.0,0.00012324]
[1742996349389,0.14998702,87958.0,87943.0,0.00012324]
[1742996349600,0.30284278,87957.0,87949.0,0.227403]
[1742996349819,0.3,87957.0,87950.0,0.227401]
[1742996350017,0.00818702,87956.0,87949.0,0.01137]
[1742996350271,0.00818702,87956.0,87942.0,0.011371]
[1742996350469,0.01102976,87956.0,87950.0,0.2274]
[1742996350674,0.00818702,87956.0,87955.0,0.011369]
[1742996351634,0.16776001,87956.0,87955.0,0.011369]
[1742996351845,0.46776001,87956.0,87955.0,0.02590985]
[1742996352019,0.00818702,87956.0,87955.0,0.02590985]
[1742996352324,0.10174803,87974.0,87973.0,0.011367]
[1742996352555,0.15644501,87985.0,87982.0,0.238684]
[1742996352694,0.19132,87983.0,87980.0,0.238689]
[1742996352889,0.30706335,87982.0,87981.0,0.22732]
[1742996353107,0.30706335,87982.0,87981.0,0.238686]
[1742996353301,0.00706335,87982.0,87981.0,0.238686]
[1742996353598,0.30706335,87982.0,87979.0,0.238691]
[1742996353920,0.00706335,87982.0,87979.0,0.238691]
[1742996354116,0.3,87980.0,87979.0,0.238691]
[1742996354464,0.3,87980.0,87969.0,0.227351]
[1742996354465,0.3,87980.0,87961.0,0.011368]
[1742996354668,0.00990524,87979.0,87965.0,0.011368]
[1742996354788,0.00990524,87979.0,87964.0,0.238733]
[1742996354991,0.3,87977.0,87960.0,0.238742]
[1742996355246,0.00995835,87976.0,87960.0,0.238742]
[1742996355449,0.00995835,87976.0,87966.0,0.238728]
[1742996355681,0.00995835,87976.0,87968.0,0.011367]
[1742996355682,0.00711624,87976.0,87968.0,0.011367]
[1742996355882,0.0028421,87976.0,87965.0,0.011368]
[1742996356027,0.00710075,87975.0,87965.0,0.238729]
[1742996356235,0.02246306,87969.0,87965.0,0.238729]
[1742996356595,0.02246306,87969.0,87962.0,0.238737]
[1742996356801,0.00284216,87968.0,87963.0,0.011368]
[1742996357003,0.00284216,87968.0,87959.0,0.238745]
[1742996357258,0.00284216,87968.0,87962.0,0.238737]
[1742996357506,0.00284216,87968.0,87963.0,0.227367]
[1742996357924,0.00246995,87968.0,87953.0,0.23876]
[1742996358123,0.00246995,87968.0,87957.0,0.23875]
[1742996358451,0.3,87966.0,87956.0,0.00012324]
[1742996358661,0.3,87964.0,87956.0,0.00012324]
[1742996358837,0.3,87962.0,87956.0,0.00012324]
[1742996359087,0.3,87964.0,87956.0,0.00012324]
[1742996359292,0.3,87962.0,87961.0,0.227373]
[1742996359504,0.3,87962.0,87956.0,0.00012324]
[1742996359706,0.00992371,87961.0,87956.0,0.00012324]
[1742996360034,0.08722371,87961.0,87956.0,0.00012324]
[1742996360236,0.08438125,87961.0,87956.0,0.00012324]
[1742996360436,0.08722382,87961.0,87956.0,0.00012324]
[1742996360791,0.08438125,87961.0,87956.0,0.00012324]
[1742996360948,0.3178131,87960.0,87956.0,0.00012324]
[1742996361350,0.00706518,87959.0,87958.0,0.238749]
[1742996361555,0.00706518,87959.0,87956.0,0.00012324]
[1742996361784,0.30284254,87958.0,87956.0,0.00012324]
[1742996361935,0.0479,87957.0,87956.0,0.00012324]
[1742996362141,1.090111,87957.0,87956.0,0.00012324]
[1742996362357,1.0971615,87957.0,87956.0,0.00012324]
[1742996362589,0.5997915,87957.0,87956.0,0.00012324]
[1742996362789,0.5061925,87957.0,87956.0,0.00012324]
[1742996363323,0.6841415,87957.0,87956.0,0.00012324]
[1742996363528,0.6831415,87957.0,87956.0,0.00012324]
[1742996363762,0.6608325,87957.0,87956.0,0.00012324]
[1742996364713,0.6608325,87957.0,87956.0,0.01149224]
[1742996364714,0.0070505,87957.0,87956.0,0.01149224]
[1742996364935,0.003,87957.0,87956.0,0.01149224]
[1742996365744,0.02081156,87957.0,87956.0,0.01149224]
[1742996365968,0.01,87958.0,87957.0,0.238752]
[1742996365969,5.6e-07,87958.0,87957.0,0.238752]
[1742996366167,0.14140056,87958.0,87957.0,0.25029285]
[1742996366388,0.14140056,87958.0,87957.0,0.34696296]